bitfinex/quotes_SOLUSD_20260222
["timestamp","ask_amount","ask_price","bid_price","bid_amount"]
[1771740311440,14.70992956,85.18,85.146,0.56411156]
[1771740313750,0.28432314,85.179,85.148,0.56411156]
[1771740319447,0.28432314,85.179,85.149,11.74411913]
[1771740319448,11.74012068,85.178,85.149,11.74411913]
[1771740319650,11.74012068,85.178,85.15,0.56411156]
[1771740321954,11.74012068,85.178,85.149,11.74411913]
[1771740321955,2.96895701,85.16,85.136,0.56411156]
[1771740322153,11.74012068,85.178,85.136,0.56411156]
[1771740322344,2.96895701,85.17,85.136,0.56411156]
[1771740323351,2.96895701,85.18,85.136,0.56411156]
[1771740323857,2.96895701,85.18,85.141,0.56411156]
[1771740325149,11.73998285,85.179,85.142,11.74508468]
[1771740325335,11.73998285,85.179,85.143,0.56411156]
[1771740327556,0.28432314,85.178,85.144,11.74480879]
[1771740327743,0.28432314,85.178,85.145,0.56411156]
[1771740329554,11.74025852,85.177,85.146,11.74453291]
[1771740329759,11.74025852,85.177,85.147,0.56411156]
[1771740340048,11.74025852,85.177,85.149,0.56411156]
[1771740345071,11.73951333,85.183,85.151,0.56411156]
[1771740345277,2.96895701,85.18,85.153,0.56411156]
[1771740347885,2.96895701,85.17,85.155,0.56411156]
[1771740348178,11.73998285,85.179,85.155,0.56411156]
[1771740355991,2.96895701,85.17,85.155,0.56411156]
[1771740356186,11.73998285,85.179,85.155,0.56411156]
[1771740360305,2.96895701,85.17,85.146,0.56411156]
[1771740360894,0.28432314,85.178,85.146,0.56411156]
[1771740361101,0.28432314,85.178,85.148,0.56411156]
[1771740361582,11.73998285,85.179,85.148,0.56411156]
[1771740363584,12.02292788,85.189,85.15,0.56411156]
[1771740364082,12.02292788,85.189,85.151,0.56411156]
[1771740364688,12.02292788,85.189,85.153,0.56411156]
[1771740378017,2.96895701,85.18,85.153,0.56411156]
[1771740379617,41.36943975,85.189,85.153,0.56411156]
[1771740382609,41.36943975,85.189,85.155,0.56411156]
[1771740382817,41.36943975,85.189,85.161,0.56411156]
[1771740382818,11.73860474,85.189,85.161,0.56411156]
[1771740383914,11.73860474,85.189,85.162,11.74232638]
[1771740384111,11.73860474,85.189,85.163,0.56411156]
[1771740385001,11.73860474,85.189,85.165,0.56411156]
[1771740389021,11.73860474,85.189,85.167,0.56411156]
[1771740401723,2.96613956,85.18,85.161,0.56411156]
[1771740401917,2.96613956,85.18,85.152,0.56411156]
[1771740404715,14.70610353,85.18,85.154,0.56411156]
[1771740406730,11.73888034,85.187,85.154,0.56411156]
[1771740419436,2.96613956,85.18,85.154,0.56411156]
[1771740420830,11.73888034,85.187,85.156,0.56411156]
[1771740424149,11.73888034,85.187,85.158,0.56411156]
[1771740432652,0.1,85.2,85.161,0.56411156]
[1771740432861,11.73722696,85.199,85.171,0.56411156]
[1771740433158,0.28432314,85.198,85.171,0.56411156]
[1771740436042,11.73750249,85.197,85.171,0.56411156]
[1771740447769,11.73750249,85.197,85.172,0.56411156]
[1771740448148,0.1,85.21,85.181,0.56411156]
[1771740450275,0.1,85.21,85.18,2.96602301]
[1771740450276,0.1,85.21,85.183,0.56411156]
[1771740451576,0.1,85.21,85.185,0.56411156]
[1771740451774,0.28432314,85.199,85.136,0.56411156]
[1771740451975,2.96602301,85.18,85.141,0.56411156]
[1771740452878,11.73919772,85.185,85.151,0.56411156]
[1771740454857,2.96602301,85.18,85.153,0.56411156]
[1771740455687,2.96602301,85.17,85.153,0.56411156]
[1771740455979,2.96602301,85.17,85.148,0.56411156]
[1771740458986,0.28432314,85.179,85.15,0.56411156]
[1771740459665,2.96602301,85.2,85.149,11.74411913]
[1771740459666,29.33543962,85.222,85.171,0.56411156]
[1771740459970,11.73584949,85.209,85.171,0.56411156]
[1771740462097,11.73584949,85.209,85.172,11.74094772]
[1771740462298,11.73584949,85.209,85.173,0.56411156]
[1771740464491,11.73584949,85.209,85.175,0.56411156]
[1771740465596,2.96602301,85.2,85.175,0.56411156]
[1771740468197,2.96602301,85.19,85.152,0.56411156]
[1771740471778,2.96602301,85.2,85.154,0.56411156]
[1771740472602,2.96602301,85.2,85.161,0.56411156]
[1771740473298,11.73722696,85.199,85.163,0.56411156]
[1771740475003,11.73722696,85.199,85.165,0.56411156]
[1771740479508,2.96602301,85.19,85.166,11.74177488]
[1771740479693,2.96602301,85.19,85.167,0.56411156]
[1771740480304,0.53594897,85.189,85.159,11.742738]
[1771740481304,0.53594897,85.198,85.16,2.96602301]
[1771740482297,11.73750249,85.197,85.162,11.74232638]
[1771740482612,0.53594897,85.196,85.163,0.52084329]
[1771740486812,2.96602301,85.2,85.165,0.52084329]
[1771740486813,0.53594897,85.194,85.165,0.52084329]
[1771740488829,0.53428984,85.207,85.167,0.55763722]
[1771740491114,0.53428984,85.199,85.169,0.55763722]
[1771740498432,11.73736472,85.198,85.169,0.55763722]
[1771740498610,0.52689178,85.197,85.169,0.55763722]
[1771740504532,0.52689178,85.195,85.169,0.55763722]
[1771740523128,3.49955478,85.19,85.169,0.55763722]
[1771740523471,0.53325751,85.189,85.169,0.55763722]
[1771740526748,0.53325751,85.189,85.156,29.35788294]
[1771740526749,0.53325751,85.179,85.149,0.51120478]
[1771740527455,0.53325751,85.179,85.151,0.51120478]
[1771740530650,0.53325751,85.177,85.151,0.51120478]
[1771740532357,0.53325751,85.175,85.151,0.51120478]
[1771740533450,0.53325751,85.175,85.153,0.51120478]
[1771740534652,2.96629727,85.17,85.153,0.51120478]
[1771740536155,2.96629727,85.16,85.153,0.51120478]
[1771740537548,0.53325751,85.169,85.153,0.51120478]
[1771740539052,2.96629727,85.17,85.153,0.51120478]
[1771740539750,0.53325751,85.178,85.153,0.51120478]
[1771740539956,2.96629727,85.17,85.155,0.51120478]
[1771740542953,0.53325751,85.198,85.155,0.51120478]
[1771740543154,2.96629727,85.18,85.155,0.51120478]
[1771740544656,2.96629727,85.18,85.157,0.51120478]
[1771740545752,11.73901296,85.187,85.159,0.51120478]
[1771740545753,2.96629727,85.17,85.159,0.51120478]
[1771740549265,2.96629727,85.17,85.16,12.25460611]
[1771740549461,2.96629727,85.17,85.161,0.51200395]
[1771740549867,2.96629727,85.17,85.151,29.35957951]
[1771740551372,2.96629727,85.17,85.129,0.28432314]
[1771740551669,2.96629727,85.17,85.13,0.9]
[1771740551967,2.96629727,85.17,85.131,0.51259739]
[1771740553555,2.96629727,85.17,85.133,0.51259739]
[1771740556978,0.53244276,85.174,85.135,0.51259739]
[1771740557178,2.96629727,85.18,85.135,0.51259739]
[1771740557769,0.53246376,85.179,85.135,0.51259739]
[1771740561458,0.53246376,85.179,85.137,0.51259739]
[1771740567883,0.53246376,85.179,85.138,41.10972773]
[1771740568085,0.53246376,85.179,85.139,0.51259739]
[1771740568493,2.96781624,85.17,85.139,0.51259739]
[1771740570265,2.96781624,85.17,85.141,0.51259739]
[1771740571085,0.53246376,85.171,85.141,0.51259739]
[1771740571382,0.53246376,85.171,85.143,0.51259739]
[1771740573989,0.53246376,85.171,85.144,41.10683077]
[1771740574285,0.53246376,85.171,85.145,0.51259739]
[1771740576077,0.53246376,85.169,85.147,0.51259739]
[1771740579373,0.53246376,85.169,85.149,0.55206806]
[1771740586404,0.53246376,85.169,85.15,12.29604926]
[1771740587199,0.53246376,85.169,85.151,0.55206806]
[1771740592293,0.53246376,85.169,85.152,11.74370537]
[1771740594313,0.53246376,85.169,85.152,0.55206806]
[1771740598025,0.53246376,85.169,85.153,11.74356746]
[1771740601212,0.53246376,85.169,85.153,0.55206806]
[1771740603320,0.53246376,85.169,85.154,12.29549761]
[1771740609127,0.53620552,85.159,85.131,41.11310802]
[1771740609420,3.50402176,85.15,85.132,0.51521033]
[1771740609612,2.96781624,85.16,85.132,0.51521033]
[1771740611614,0.52409618,85.159,85.134,0.5267394]
[1771740611822,0.52409618,85.159,85.14,1.4267394]
[1771740612034,0.52409618,85.159,85.141,0.5267394]
[1771740613825,11.7406246,85.175,85.142,11.74508468]
[1771740614414,2.96781624,85.15,85.142,11.74508468]
[1771740615209,11.7406246,85.175,85.142,11.74508468]
[1771740615410,2.96781624,85.15,85.142,11.74508468]
[1771740615610,11.7406246,85.175,85.142,11.74508468]
[1771740615828,2.96781624,85.15,85.142,11.74508468]
[1771740616425,0.02963084,85.156,85.142,11.74508468]
[1771740616634,2.96781624,85.15,85.142,11.74508468]
[1771740617311,0.02963084,85.156,85.142,11.74508468]
[1771740617914,2.96781624,85.15,85.142,11.74508468]
[1771740618634,0.02963084,85.156,85.142,11.74508468]
[1771740618821,2.96781624,85.15,85.142,11.74508468]
[1771740619221,0.02963084,85.156,85.142,11.74508468]
[1771740619524,2.96781624,85.15,85.142,11.74508468]
[1771740620220,0.02963084,85.156,85.142,11.74508468]
[1771740620421,2.96781624,85.15,85.142,11.74508468]
[1771740621631,2.96781624,85.15,85.13,11.74661002]
[1771740621632,0.03395363,85.149,85.13,11.74661002]
[1771740621932,2.96781624,85.14,85.13,11.74661002]
[1771740622117,2.96781624,85.14,85.131,0.55620466]
[1771740624525,2.96781624,85.14,85.13,11.74661002]
[1771740628019,2.96999524,85.14,85.13,11.74661002]
[1771740633142,0.52409618,85.139,85.112,11.74922455]
[1771740633338,0.52409618,85.129,85.112,11.74922455]
[1771740633938,0.52409618,85.129,85.111,29.37327599]
[1771740633939,0.52409618,85.119,85.082,41.13678567]
[1771740634349,0.52409618,85.129,85.082,41.13678567]
[1771740635241,0.52409618,85.129,85.085,0.5267394]
[1771740636345,8.33085712,85.16,85.084,41.13581871]
[1771740636346,0.52409618,85.159,85.101,0.5267394]
[1771740636646,0.52409618,85.159,85.086,103.9]
[1771740636647,0.52409618,85.159,85.111,0.5267394]
[1771740637235,0.52409618,85.159,85.113,0.5267394]
[1771740641450,0.52409618,85.159,85.115,0.54678697]
[1771740642644,0.52409618,85.159,85.117,0.54678697]
[1771740643645,0.56073423,85.149,85.117,0.54678697]
[1771740643944,0.56073423,85.159,85.117,0.54678697]
[1771740644942,0.56073423,85.159,85.119,0.54678697]
[1771740647458,29.35218426,85.173,85.121,0.54678697]
[1771740647459,0.56073423,85.149,85.121,0.54678697]
[1771740648760,0.56073423,85.149,85.122,41.11745494]
[1771740648963,0.56073423,85.149,85.123,0.54678697]
[1771740650861,0.56073423,85.149,85.125,0.54678697]
[1771740653469,0.56073423,85.149,85.125,0.54678697]
[1771740654167,0.56073423,85.149,85.127,0.54678697]
[1771740655251,0.56073423,85.149,85.129,0.54678697]
[1771740657564,0.56073423,85.149,85.13,11.74674027]
[1771740657771,0.56073423,85.149,85.13,12.29352724]
[1771740659158,0.56073423,85.149,85.13,11.74674027]
[1771740660273,11.7426212,85.16,85.104,58.75100474]
[1771740660274,0.56073423,85.139,85.125,11.7473649]
[1771740661864,0.56073423,85.129,85.104,0.54678697]
[1771740662070,0.56073423,85.119,85.103,11.75046708]
[1771740665182,0.56073423,85.119,85.097,12.29808255]
[1771740666779,0.56073423,85.119,85.098,0.54678697]
[1771740667987,0.56073423,85.119,85.099,12.29062876]
[1771740668692,0.56073423,85.119,85.1,0.53960936]
[1771740670688,0.56073423,85.119,85.082,0.53960936]
[1771740671792,0.56073423,85.119,85.084,0.55238943]
[1771740673793,0.56073423,85.119,85.086,0.55238943]
[1771740673997,0.57768888,85.117,85.086,0.55238943]
[1771740674498,0.57768888,85.109,85.086,0.55238943]
[1771740676100,0.57768888,85.109,85.088,0.55238943]
[1771740677795,0.57768888,85.109,85.09,0.55238943]
[1771740679992,0.57768888,85.109,85.091,11.75212419]
[1771740680198,0.57768888,85.109,85.092,0.55238943]
[1771740684785,0.57768888,85.109,85.094,0.55238943]
[1771740685902,0.57768888,85.109,85.096,0.55238943]
[1771740695613,2.97220243,85.11,85.096,0.55238943]
[1771740710526,0.56876694,85.109,85.096,0.55238943]
[1771740712118,0.56876694,85.109,85.085,0.55936724]
[1771740712422,0.56876694,85.099,85.085,0.55936724]
[1771740712722,0.56876694,85.089,85.07,22.01454692]
[1771740712923,11.74977545,85.109,85.07,0.2]
[1771740712924,0.56876694,85.079,85.07,0.2]
[1771740713602,0.56876694,85.079,85.064,0.55936724]
[1771740713603,0.56876694,85.079,85.053,0.55936724]
[1771740713910,0.56876694,85.069,85.053,0.55936724]
[1771740714416,0.56876694,85.069,85.055,11.75704216]
[1771740716422,0.56876694,85.069,85.051,11.75765129]
[1771740717002,2.97220243,85.06,85.05,0.2]
[1771740717508,0.56876694,85.061,85.05,0.2]
[1771740717907,0.56876694,85.066,85.051,0.55936724]
[1771740719905,0.56876694,85.066,85.05,0.2]
[1771740723821,0.45194272,85.059,85.028,0.55936724]
[1771740724017,11.75571621,85.065,85.028,0.55936724]
[1771740724018,0.25194272,85.049,85.028,0.55936724]
[1771740724212,0.25194272,85.049,85.03,11.76042212]
[1771740726508,0.25194272,85.049,85.03,0.55936724]
[1771740727218,2.97220243,85.05,85.03,0.55936724]
[1771740728818,2.97220243,85.05,85.032,0.5460181]
[1771740729828,2.97220243,85.05,85.034,0.5460181]
[1771740730009,0.25530703,85.051,85.034,0.5460181]
[1771740735739,0.25530703,85.051,85.036,0.55855908]
[1771740736226,0.25565727,85.059,85.036,0.55855908]
[1771740744156,0.25565727,85.059,85.038,0.55855908]
[1771740747943,11.75378177,85.079,85.053,0.60174304]
[1771740748534,2.97220243,85.07,85.053,0.60174304]
[1771740749035,11.75378177,85.079,85.053,0.60174304]
[1771740749345,9.0546959,85.101,85.053,0.60174304]
[1771740749346,2.97220243,85.07,85.053,0.60174304]
[1771740749531,2.97220243,85.07,85.044,0.60174304]
[1771740750050,2.97533625,85.07,85.044,0.60174304]
[1771740750256,2.97533625,85.06,85.021,12.36354306]
[1771740750554,2.97533625,85.06,85.022,0.60174304]
[1771740751552,11.75654545,85.059,85.024,0.60174304]
[1771740753441,2.97533625,85.05,85.024,0.60174304]
[1771740753837,2.97533625,85.06,85.026,0.60174304]
[1771740754930,41.13823621,85.079,85.026,0.60174304]
[1771740755336,2.97533625,85.07,85.031,0.60174304]
[1771740757758,2.97533625,85.06,85.031,0.60174304]
[1771740757954,2.97533625,85.06,85.032,0.60174304]
[1771740762149,14.73175299,85.06,85.033,11.76014018]
[1771740762355,14.73175299,85.06,85.034,0.60174304]
[1771740762750,11.75641674,85.06,85.034,0.60174304]
[1771740763354,2.97533625,85.06,85.034,0.60174304]
[1771740764159,2.97533625,85.07,85.034,0.60174304]
[1771740764357,11.75516345,85.069,85.036,0.60174304]
[1771740766754,2.97533625,85.07,85.036,0.60174304]
[1771740768366,2.97533625,85.07,85.037,11.759587]
[1771740768569,2.97533625,85.07,85.038,0.60174304]
[1771740770265,11.75516345,85.069,85.038,0.60174304]
[1771740771186,11.75516345,85.069,85.04,0.60174304]
[1771740780868,11.75516345,85.069,85.042,0.60174304]
[1771740781269,11.75378177,85.079,85.042,0.60174304]
[1771740781672,11.75378177,85.079,85.051,0.60174304]
[1771740783077,2.97533625,85.07,85.051,0.60174304]
[1771740783276,11.75378177,85.079,85.051,0.60174304]
[1771740783672,0.54352245,85.069,85.043,11.75864522]
[1771740785582,0.54352245,85.069,85.044,0.58058828]
[1771740789486,0.54835434,85.074,85.046,0.55091503]
[1771740789674,0.54835434,85.079,85.046,0.55091503]
[1771740792286,0.54835434,85.079,85.048,0.59004954]
[1771740793467,0.57686577,85.077,85.048,0.59004954]
[1771740794280,2.97533625,85.07,85.048,0.59004954]
[1771740794567,0.57686577,85.069,85.05,0.59004954]
[1771740797472,11.75530164,85.068,85.05,0.59004954]
[1771740811502,0.57686577,85.068,85.05,0.59004954]
[1771740815006,0.57686577,85.076,85.05,0.59004954]
[1771740819093,0.53748637,85.074,85.05,0.59004954]
[1771740822315,0.53748637,85.072,85.05,0.59004954]
[1771740824713,0.53748637,85.07,85.05,0.59004954]
[1771740827618,0.53748637,85.074,85.05,0.59004954]
[1771740828824,11.75461074,85.073,85.05,0.59004954]
[1771740829023,12.29209711,85.073,85.05,0.59004954]
[1771740829402,0.53748637,85.072,85.05,0.59004954]
[1771740830225,12.29237346,85.071,85.05,0.59004954]
[1771740833418,0.53748637,85.075,85.05,0.59004954]
[1771740835513,2.97491724,85.1,85.052,0.5696147]
[1771740836509,2.97491724,85.1,85.053,11.75737481]
[1771740836816,41.1285679,85.099,85.054,0.5696147]
[1771740837403,0.03109045,85.098,85.061,0.5696147]
[1771740839425,2.97491724,85.1,85.061,0.5696147]
[1771740839426,0.03114491,85.089,85.061,0.5696147]
[1771740842713,11.78354533,85.089,85.061,0.5696147]
[1771740843229,0.0312564,85.088,85.061,0.5696147]
[1771740843520,11.75240042,85.089,85.063,0.5696147]
[1771740844521,11.7510194,85.099,85.071,0.5696147]
[1771740845128,0.03127652,85.106,85.071,0.5696147]
[1771740848833,41.15537998,85.109,85.073,0.58008102]
[1771740849029,0.03141486,85.108,85.073,0.58008102]
[1771740849933,11.74963869,85.109,85.073,0.58008102]
[1771740850232,11.74963869,85.109,85.081,0.58008102]
[1771740851010,0.03143861,85.115,85.081,0.58008102]
[1771740861639,0.03143861,85.115,85.083,0.5696147]
[1771740877750,2.97163581,85.1,85.057,0.5696147]
[1771740878062,0.03195891,85.099,85.061,0.5696147]
[1771740881241,11.7510194,85.099,85.071,0.5696147]
[1771740882464,11.78306872,85.099,85.071,0.5696147]
[1771740883742,0.03207021,85.098,85.071,0.5696147]
[1771740896275,0.0322347,85.119,85.081,0.5696147]
[1771740896671,2.97163581,85.11,85.081,0.5696147]
[1771740896870,0.03225875,85.109,85.081,0.5696147]
[1771740900083,0.0322942,85.108,85.081,0.5696147]
[1771740914377,9.08460733,85.109,85.083,0.5696147]
[1771740917375,0.02638868,85.112,85.083,0.5696147]
[1771740918395,0.02638868,85.112,85.082,11.75336733]
[1771740918396,0.02490471,85.099,85.065,0.5696147]
[1771740919787,0.02490471,85.099,85.067,0.5696147]
[1771740920179,0.02490471,85.099,85.071,0.5696147]
[1771740923306,0.02490471,85.099,85.073,0.5696147]
[1771740926798,11.74963869,85.109,85.075,0.5696147]
[1771740932106,11.74963869,85.109,85.076,11.75419624]
[1771740932290,11.74963869,85.109,85.077,0.5696147]
[1771740934406,2.97250972,85.1,85.071,12.32449847]
[1771740935107,2.97250972,85.1,85.072,0.5696147]
[1771740936299,11.7510194,85.099,85.072,0.5696147]
[1771740939410,11.7510194,85.099,85.064,0.5696147]
[1771740941017,41.1285679,85.099,85.064,0.5696147]
[1771740944299,2.97250972,85.09,85.054,0.5696147]
[1771740945819,11.75240042,85.089,85.056,0.5696147]
[1771740954631,2.97250972,85.07,85.041,0.5696147]
[1771740955715,2.97250972,85.08,85.041,0.5696147]
[1771740960734,2.97250972,85.07,85.043,0.5696147]
[1771740962031,11.75378177,85.079,85.045,0.5696147]
[1771740967532,2.97250972,85.08,85.047,0.5696147]
[1771740969944,2.97250972,85.07,85.047,0.5696147]
[1771740971234,2.97250972,85.08,85.047,0.5696147]
[1771740973228,14.72625272,85.08,85.049,0.5696147]
[1771740975246,14.72625272,85.08,85.051,0.5696147]
[1771740976644,2.97250972,85.07,85.042,0.5696147]
[1771740984451,11.75516345,85.069,85.042,0.5696147]
[1771741001964,11.75516345,85.069,85.044,0.5696147]
[1771741010184,11.75461079,85.073,85.046,0.5696147]
[1771741011584,2.97526512,85.07,85.046,0.5696147]
[1771741012677,11.75516345,85.069,85.046,0.5696147]
[1771741016885,3.69383402,85.096,85.048,0.5696147]
[1771741017070,2.97526512,85.09,85.048,0.5696147]
[1771741017271,2.97526512,85.09,85.051,0.5696147]
[1771741022594,11.75240042,85.089,85.053,0.5696147]
[1771741022970,2.97526512,85.08,85.053,0.5696147]
[1771741024380,2.97526512,85.08,85.055,0.5696147]
[1771741025401,2.97526512,85.08,85.057,0.5696147]
[1771741027899,2.97526512,85.09,85.059,0.5696147]
[1771741029695,2.97526512,85.1,85.061,0.5696147]
[1771741030277,2.97526512,85.11,85.063,0.5696147]
[1771741031497,2.97526512,85.1,85.063,0.5696147]
[1771741034196,11.7510194,85.099,85.064,11.75585441]
[1771741034396,11.7510194,85.099,85.065,0.5696147]
[1771741036404,11.7510194,85.099,85.066,11.75557802]
[1771741036704,11.7510194,85.099,85.067,0.5696147]
[1771741062833,11.7510194,85.099,85.069,0.5696147]
[1771741104473,29.37501052,85.107,85.069,0.5696147]
[1771741109754,2.97310835,85.1,85.069,0.5696147]
[1771741113484,11.7510194,85.099,85.071,0.5696147]
[1771741116086,2.97310835,85.11,85.071,0.5696147]
[1771741117285,41.12373543,85.109,85.071,0.5696147]
[1771741127089,2.9729242,85.1,85.071,0.5696147]
[1771741133390,58.74188589,85.119,85.071,0.5696147]
[1771741133598,2.9729242,85.11,85.071,0.5696147]
[1771741133780,2.9729242,85.1,85.071,0.5696147]
[1771741137110,11.7510194,85.099,85.071,0.5696147]
[1771741140303,2.9729242,85.11,85.071,0.5696147]
[1771741141803,2.9729242,85.1,85.071,0.5696147]
[1771741145401,2.9729242,85.11,85.071,0.5696147]
[1771741146199,99.86079001,85.119,85.071,0.5696147]
[1771741146501,41.12373543,85.109,85.073,0.5696147]
[1771741148616,11.74963869,85.109,85.075,0.5696147]
[1771741149118,11.74963869,85.109,85.08,2.9729242]
[1771741149285,11.74963869,85.109,85.081,0.5696147]
[1771741153399,2.9729242,85.11,85.081,0.5696147]
[1771741153707,2.9729242,85.12,85.081,0.5696147]
[1771741153908,2.9729242,85.11,85.081,0.5696147]
[1771741159027,11.74963869,85.109,85.081,0.5696147]
[1771741168107,11.74963869,85.109,85.081,12.3230091]
[1771741168308,11.74963869,85.109,85.082,0.5696147]
[1771741171830,41.11920031,85.119,85.082,0.5696147]
[1771741177932,2.97224742,85.12,85.082,0.5696147]
[1771741182434,41.11890412,85.119,85.082,0.5696147]
[1771741188925,41.11890412,85.119,85.084,0.5696147]
[1771741189435,11.74825832,85.119,85.084,0.5696147]
[1771741190522,11.74825832,85.119,85.086,0.5696147]
[1771741192443,11.74687826,85.129,85.093,0.5696147]
[1771741194744,11.74687826,85.129,85.095,0.5696147]
[1771741194943,2.97224742,85.12,85.095,0.5696147]
[1771741196742,2.97224742,85.13,85.096,11.75143367]
[1771741196943,2.97224742,85.13,85.097,0.5696147]
[1771741200535,11.74687826,85.129,85.098,11.75115748]
[1771741200749,11.74687826,85.129,85.066,101.9]
[1771741200750,2.97224742,85.12,85.076,0.5696147]
[1771741200946,2.97224742,85.11,85.077,0.5696147]
[1771741201346,2.97224742,85.12,85.077,0.5696147]
[1771741201951,2.97224742,85.1,85.072,0.5696147]
[1771741202156,2.97224742,85.1,85.0,50.23081104]
[1771741202157,2.97224742,85.1,85.062,0.5696147]
[1771741202353,2.97224742,85.08,85.052,11.75751305]
[1771741202559,2.97224742,85.08,85.052,0.5696147]
[1771741206955,2.97224742,85.08,85.053,11.75737481]
[1771741207153,2.97224742,85.07,85.042,0.5696147]
[1771741210658,2.97224742,85.07,85.044,0.5696147]
[1771741211061,11.75380244,85.079,85.044,0.5696147]
[1771741211255,11.75317593,85.084,85.051,0.5696147]
[1771741214267,11.75240042,85.089,85.053,0.5696147]
[1771741214948,2.97224742,85.08,85.053,0.5696147]
[1771741218769,2.97224742,85.08,85.054,11.75723657]
[1771741218966,14.72602123,85.08,85.054,11.75723657]
[1771741219271,2.97224742,85.07,85.054,11.75723657]
[1771741224877,2.97224742,85.07,85.054,0.5696147]
[1771741230371,2.97224742,85.07,85.054,12.32672746]
[1771741232380,2.97224742,85.07,85.055,0.5696147]
[1771741232584,14.72602123,85.08,85.055,0.5696147]
[1771741233481,14.72602123,85.08,85.056,0.5696147]
[1771741234382,2.97224742,85.07,85.031,0.5696147]
[1771741234586,2.97224742,85.05,85.031,0.5696147]
[1771741234768,2.97224742,85.05,85.023,0.5696147]
[1771741235784,44.1101303,85.08,85.011,0.5696147]
[1771741235785,2.97224742,85.03,85.011,0.5696147]
[1771741236282,2.97224742,85.04,85.011,0.5696147]
[1771741236590,11.75931043,85.039,85.013,0.5696147]
[1771741237585,11.75931043,85.039,85.015,0.5696147]
[1771741239485,11.75931043,85.039,85.017,0.5696147]
[1771741255702,11.75792778,85.049,85.017,0.5696147]
[1771741263712,2.97764224,85.04,85.017,0.5696147]
[1771741265105,2.97764224,85.04,85.0,0.2]
[1771741265106,2.97764224,85.03,85.0,0.2]
[1771741265317,2.97764224,85.01,85.0,0.2]
[1771741265713,0.43349597,85.009,84.99,0.2]
[1771741266822,0.43349597,85.009,84.97,0.2]
[1771741267431,0.43346024,85.007,84.971,11.76872109]
[1771741267720,0.43346024,85.007,84.981,0.492475]
[1771741268626,0.43346024,85.007,84.983,0.4834236]
[1771741277635,2.97764224,85.0,84.983,0.4834236]
[1771741278132,0.43306219,85.002,84.983,0.4834236]
[1771741280334,0.43297101,85.007,84.985,0.49368753]
[1771741285733,0.43297101,85.007,84.97,0.2]
[1771741285734,14.74097459,85.01,84.987,0.49368753]
[1771741286237,0.43279785,85.009,84.987,0.49368753]
[1771741291144,103.2,85.07,84.99,0.49368753]
[1771741291145,0.43266244,85.03,84.99,0.49368753]
[1771741291334,0.43266244,85.029,84.991,0.49368753]
[1771741292541,0.43266244,85.029,84.993,0.49368753]
[1771741292742,0.43261043,85.027,84.993,0.49368753]
[1771741297540,2.97764224,85.02,84.993,0.49368753]
[1771741300049,11.76207671,85.019,84.993,0.49368753]
[1771741303954,12.1943991,85.019,84.993,0.49368753]
[1771741305153,0.43230014,85.018,84.993,0.49368753]
[1771741325175,0.4319051,85.016,84.993,0.49368753]
[1771741325882,0.43188765,85.009,84.993,0.49368753]
[1771741326279,0.43188765,85.015,84.993,0.49368753]
[1771741331181,9.56724418,85.017,84.993,0.50075118]
[1771741347492,29.401255,85.031,84.993,0.50075118]
[1771741347696,2.97842174,85.02,84.993,0.50075118]
[1771741350500,11.76207671,85.019,84.993,0.50075118]
[1771741368591,32.38028305,85.03,84.995,0.50075118]
[1771741368799,11.76069341,85.029,84.995,0.50075118]
[1771741369013,2.97889531,85.02,84.995,0.50075118]
[1771741372714,29.40138774,85.03,84.995,0.50075118]
[1771741381517,3.69383402,85.045,84.995,0.50075118]
[1771741381819,9.0546959,85.045,84.995,0.50075118]
[1771741382906,5.36086188,85.043,84.995,0.50075118]
[1771741385524,41.15613461,85.042,85.001,0.50075118]
[1771741386023,41.15613461,85.042,85.011,0.50075118]
[1771741387918,99.93115954,85.059,85.011,0.50075118]
[1771741388713,99.93115954,85.059,85.012,0.50075118]
[1771741393025,41.14790909,85.059,85.021,0.50075118]
[1771741393412,41.14790909,85.059,85.031,0.50075118]
[1771741393916,99.90714711,85.079,85.031,0.50075118]
[1771741398618,88.15336534,85.079,85.041,0.50075118]
[1771741400019,29.38445444,85.079,85.041,0.50075118]
[1771741402235,11.75253854,85.088,85.041,0.50075118]
[1771741406341,2.97889531,85.07,85.031,0.50075118]
[1771741406524,5.36086188,85.069,85.021,0.50075118]
[1771741406730,2.97889531,85.06,85.021,0.50075118]
[1771741407546,0.45771949,85.047,85.0,2.97889531]
[1771741407847,0.45771949,85.047,85.01,2.97889531]
[1771741408031,0.45771949,85.047,85.0,2.97889531]
[1771741409446,0.45771949,85.045,85.003,0.47775647]
[1771741411653,11.75861906,85.044,85.004,11.76415227]
[1771741411834,0.45771949,85.043,85.005,0.47775647]
[1771741413554,0.45771949,85.041,85.011,0.47775647]
[1771741414852,0.45771949,85.039,85.011,0.47775647]
[1771741418059,0.48220284,85.037,85.011,0.47775647]
[1771741422049,0.48220284,85.035,85.011,0.47775647]
[1771741427251,0.48220284,85.042,85.013,0.46912675]
[1771741427447,11.75792778,85.049,85.021,0.46912675]
[1771741427667,11.75792778,85.049,85.031,0.46912675]
[1771741429471,0.48220284,85.049,85.031,0.46912675]
[1771741432463,11.75806603,85.048,85.031,0.46912675]
[1771741433252,0.48220284,85.047,85.02,2.97691795]